[Event "Early-Titled-Tuesday-Blitz-March-12-2024"]
[Site "Chess.com"]
[Date "2024.03.12"]
[Round "11"]
[White "cthulhuuu"]
[Black "javierfreilemartin"]
[Result "1/2-1/2"]
[WhiteElo "2392"]
[BlackElo "2292"]
[TimeControl "180+1"]
[EndTime "10:04:04 PDT"]
[Termination "Game drawn by repetition"]

1. e4 {[%clk 0:02:59.9]} 1... c5 {[%clk 0:02:59.1]} 2. Nf3 {[%clk 0:02:59.9]}
2... e6 {[%clk 0:02:58.1]} 3. d3 {[%clk 0:03:00]} 3... Nc6 {[%clk 0:02:56.5]} 4.
g3 {[%clk 0:03:00.2]} 4... Nge7 {[%clk 0:02:55.8]} 5. Bg2 {[%clk 0:03:00.5]}
5... g6 {[%clk 0:02:56]} 6. O-O {[%clk 0:03:00.7]} 6... Bg7 {[%clk 0:02:56.1]}
7. Re1 {[%clk 0:03:01.3]} 7... O-O {[%clk 0:02:54.7]} 8. e5 {[%clk 0:03:01.6]}
8... Qc7 {[%clk 0:02:47.5]} 9. Qe2 {[%clk 0:03:01.2]} 9... b6 {[%clk 0:02:46.5]}
10. Nbd2 {[%clk 0:03:01.2]} 10... Bb7 {[%clk 0:02:46.3]} 11. Nc4 {[%clk
0:03:01.6]} 11... Nf5 {[%clk 0:02:35.7]} 12. c3 {[%clk 0:02:49.8]} 12... b5
{[%clk 0:02:33]} 13. Ne3 {[%clk 0:02:22.3]} 13... Nxe3 {[%clk 0:02:17.8]} 14.
Bxe3 {[%clk 0:02:23.2]} 14... Ne7 {[%clk 0:02:17]} 15. Bg5 {[%clk 0:02:17.9]}
15... Nd5 {[%clk 0:02:07.8]} 16. Qd2 {[%clk 0:02:14.6]} 16... f6 {[%clk
0:02:05.2]} 17. exf6 {[%clk 0:02:12.7]} 17... Bxf6 {[%clk 0:02:03.7]} 18. d4
{[%clk 0:01:59.3]} 18... cxd4 {[%clk 0:02:00]} 19. Nxd4 {[%clk 0:01:56.2]} 19...
Bg7 {[%clk 0:01:45.7]} 20. Nxb5 {[%clk 0:01:51.4]} 20... Qb6 {[%clk 0:01:42]}
21. Nd4 {[%clk 0:01:51.2]} 21... a5 {[%clk 0:01:22.6]} 22. Bh6 {[%clk
0:01:49.5]} 22... Bxh6 {[%clk 0:01:20.4]} 23. Qxh6 {[%clk 0:01:50.4]} 23... Qxb2
{[%clk 0:01:19.5]} 24. Rf1 {[%clk 0:01:20.1]} 24... Rxf2 {[%clk 0:00:53.9]} 25.
Rxf2 {[%clk 0:01:10.9]} 25... Qxa1+ {[%clk 0:00:53.2]} 26. Rf1 {[%clk
0:00:51.4]} 26... Qxc3 {[%clk 0:00:52.8]} 27. Ne2 {[%clk 0:00:21]} 27... Qg7
{[%clk 0:00:32]} 28. Qd2 {[%clk 0:00:21]} 28... Rf8 {[%clk 0:00:26.4]} 29. Rxf8+
{[%clk 0:00:19.7]} 29... Kxf8 {[%clk 0:00:24.9]} 30. Qxa5 {[%clk 0:00:17.9]}
30... Qa1+ {[%clk 0:00:24.5]} 31. Kf2 {[%clk 0:00:18.2]} 31... Qf6+ {[%clk
0:00:18.1]} 32. Bf3 {[%clk 0:00:15.4]} 32... Ne7 {[%clk 0:00:13.6]} 33. Nf4
{[%clk 0:00:08]} 33... Bxf3 {[%clk 0:00:11.7]} 34. Kxf3 {[%clk 0:00:04.5]} 34...
g5 {[%clk 0:00:12]} 35. Qd8+ {[%clk 0:00:03.3]} 35... Kf7 {[%clk 0:00:11.9]} 36.
Qxd7 {[%clk 0:00:03.5]} 36... gxf4 {[%clk 0:00:11.8]} 37. gxf4 {[%clk
0:00:04.4]} 37... h5 {[%clk 0:00:10.2]} 38. Qd2 {[%clk 0:00:02.7]} 38... Nd5
{[%clk 0:00:09.7]} 39. a4 {[%clk 0:00:01.8]} 39... Qf5 {[%clk 0:00:08.7]} 40. a5
{[%clk 0:00:02.1]} 40... Qg4+ {[%clk 0:00:07.9]} 41. Ke4 {[%clk 0:00:02.3]}
41... Qf5+ {[%clk 0:00:08]} 42. Kf3 {[%clk 0:00:02.6]} 42... Qh3+ {[%clk
0:00:06.9]} 43. Ke4 {[%clk 0:00:02.9]} 43... Qf5+ {[%clk 0:00:05.4]} 44. Kf3
{[%clk 0:00:02.9]} 1/2-1/2

[Event "Early-Titled-Tuesday-Blitz-March-12-2024"]
[Site "Chess.com"]
[Date "2024.03.12"]
[Round "11"]
[White "TanitoluwaAps116"]
[Black "shimastream"]
[Result "0-1"]
[WhiteElo "2829"]
[BlackElo "2968"]
[TimeControl "180+1"]
[EndTime "10:04:09 PDT"]
[Termination "shimastream won by checkmate"]

1. e4 {[%clk 0:02:51.3]} 1... b6 {[%clk 0:02:50.8]} 2. d4 {[%clk 0:02:49.4]}
2... Bb7 {[%clk 0:02:50.3]} 3. Bd3 {[%clk 0:02:49.2]} 3... e6 {[%clk 0:02:48.5]}
4. Nf3 {[%clk 0:02:48]} 4... Nf6 {[%clk 0:02:46.8]} 5. Qe2 {[%clk 0:02:48.5]}
5... d5 {[%clk 0:02:36]} 6. e5 {[%clk 0:02:46.2]} 6... Nfd7 {[%clk 0:02:35.8]}
7. O-O {[%clk 0:02:44.1]} 7... c5 {[%clk 0:02:35.3]} 8. c3 {[%clk 0:02:44.4]}
8... Be7 {[%clk 0:02:33.4]} 9. Be3 {[%clk 0:02:35.8]} 9... Nc6 {[%clk
0:02:31.2]} 10. Nbd2 {[%clk 0:02:29.2]} 10... g5 {[%clk 0:02:29.7]} 11. h3
{[%clk 0:02:23.4]} 11... h5 {[%clk 0:02:27.8]} 12. a3 {[%clk 0:02:02.4]} 12...
Rg8 {[%clk 0:02:04.4]} 13. Nh2 {[%clk 0:01:55.6]} 13... Rh8 {[%clk 0:01:56.8]}
14. f4 {[%clk 0:01:46.6]} 14... gxf4 {[%clk 0:01:51.1]} 15. Rxf4 {[%clk
0:01:47.5]} 15... Bg5 {[%clk 0:01:50.8]} 16. Rf2 {[%clk 0:01:40.4]} 16... Bh4
{[%clk 0:01:39.7]} 17. Rf4 {[%clk 0:01:15.2]} 17... Bg5 {[%clk 0:01:23.6]} 18.
Rf3 {[%clk 0:01:03.9]} 18... Qe7 {[%clk 0:01:16]} 19. Raf1 {[%clk 0:00:59.1]}
19... Rf8 {[%clk 0:01:16.2]} 20. R3f2 {[%clk 0:00:31.2]} 20... O-O-O {[%clk
0:01:12.3]} 21. Nhf3 {[%clk 0:00:11.9]} 21... Bxe3 {[%clk 0:01:02.8]} 22. Qxe3
{[%clk 0:00:12.8]} 22... f6 {[%clk 0:01:03.2]} 23. exf6 {[%clk 0:00:12.5]} 23...
Rxf6 {[%clk 0:01:03.1]} 24. Ng5 {[%clk 0:00:08.6]} 24... Rxf2 {[%clk 0:01:00.1]}
25. Rxf2 {[%clk 0:00:09.5]} 25... e5 {[%clk 0:01:00.2]} 26. Rf7 {[%clk
0:00:06.9]} 26... Qd6 {[%clk 0:00:58.7]} 27. Bf5 {[%clk 0:00:04.7]} 27... exd4
{[%clk 0:00:54.9]} 28. cxd4 {[%clk 0:00:05.6]} 28... Nxd4 {[%clk 0:00:53.7]} 29.
Bxd7+ {[%clk 0:00:03.7]} 29... Rxd7 {[%clk 0:00:54.6]} 30. Qe8+ {[%clk
0:00:02.6]} 30... Rd8 {[%clk 0:00:55.1]} 31. Qe3 {[%clk 0:00:01.9]} 31... Nc6
{[%clk 0:00:46.6]} 32. Rg7 {[%clk 0:00:01.4]} 32... d4 {[%clk 0:00:46.1]} 33.
Qf2 {[%clk 0:00:01.6]} 33... Ne5 {[%clk 0:00:45.5]} 34. Nde4 {[%clk 0:00:01.4]}
34... Qd5 {[%clk 0:00:43.3]} 35. Qf5+ {[%clk 0:00:02.1]} 35... Kb8 {[%clk
0:00:43.4]} 36. Re7 {[%clk 0:00:02.6]} 36... Nc4 {[%clk 0:00:36.9]} 37. Qf4+
{[%clk 0:00:02.6]} 37... Ka8 {[%clk 0:00:37]} 38. Ne6 {[%clk 0:00:02.7]} 38...
Rc8 {[%clk 0:00:33.6]} 39. Nc7+ {[%clk 0:00:02.9]} 39... Rxc7 {[%clk 0:00:34.1]}
40. Qxc7 {[%clk 0:00:03.6]} 40... a5 {[%clk 0:00:32.1]} 41. Re8+ {[%clk
0:00:01.8]} 41... Ka7 {[%clk 0:00:31.9]} 42. Re7 {[%clk 0:00:02]} 42... d3
{[%clk 0:00:28.7]} 43. Rg7 {[%clk 0:00:01.9]} 43... d2 {[%clk 0:00:28.8]} 44.
Nxd2 {[%clk 0:00:02.5]} 44... Nxd2 {[%clk 0:00:29.7]} 45. b4 {[%clk 0:00:02.8]}
45... cxb4 {[%clk 0:00:27.8]} 46. axb4 {[%clk 0:00:03.7]} 46... a4 {[%clk
0:00:28.5]} 47. b5 {[%clk 0:00:03.7]} 47... a3 {[%clk 0:00:27.6]} 48. Qc3 {[%clk
0:00:02]} 48... Nc4 {[%clk 0:00:27.4]} 49. Rc7 {[%clk 0:00:01.3]} 49... Qxg2#
{[%clk 0:00:01.6]} 0-1

[Event "Early-Titled-Tuesday-Blitz-March-12-2024"]
[Site "Chess.com"]
[Date "2024.03.12"]
[Round "11"]
[White "HajiyevKanan"]
[Black "KnightmareJoker"]
[Result "0-1"]
[WhiteElo "2534"]
[BlackElo "2270"]
[TimeControl "180+1"]
[EndTime "10:04:11 PDT"]
[Termination "KnightmareJoker won by checkmate"]

1. d4 {[%clk 0:02:53.7]} 1... d5 {[%clk 0:03:00.2]} 2. Nf3 {[%clk 0:02:52]} 2...
Nf6 {[%clk 0:03:00.2]} 3. c4 {[%clk 0:02:52.9]} 3... e6 {[%clk 0:02:58.7]} 4.
cxd5 {[%clk 0:02:53.8]} 4... exd5 {[%clk 0:02:58.6]} 5. Nc3 {[%clk 0:02:54.7]}
5... Be7 {[%clk 0:02:58.2]} 6. Qc2 {[%clk 0:02:55.3]} 6... c6 {[%clk 0:02:58.4]}
7. Bf4 {[%clk 0:02:55.3]} 7... O-O {[%clk 0:02:53.8]} 8. e3 {[%clk 0:02:55.8]}
8... Nbd7 {[%clk 0:02:52.7]} 9. Bd3 {[%clk 0:02:55.9]} 9... Re8 {[%clk
0:02:44.5]} 10. O-O {[%clk 0:02:56.1]} 10... Nf8 {[%clk 0:02:44.4]} 11. h3
{[%clk 0:02:56.6]} 11... Ng6 {[%clk 0:02:42.4]} 12. Bh2 {[%clk 0:02:56.3]} 12...
Bd6 {[%clk 0:02:42.7]} 13. Bxd6 {[%clk 0:02:56.9]} 13... Qxd6 {[%clk 0:02:43.2]}
14. Rab1 {[%clk 0:02:57.8]} 14... a5 {[%clk 0:02:34.5]} 15. a3 {[%clk
0:02:58.3]} 15... Nh5 {[%clk 0:02:26.4]} 16. b4 {[%clk 0:02:55.7]} 16... axb4
{[%clk 0:02:25.2]} 17. axb4 {[%clk 0:02:56.6]} 17... Qf6 {[%clk 0:02:24.9]} 18.
Bxg6 {[%clk 0:02:48]} 18... hxg6 {[%clk 0:02:21.8]} 19. Ne5 {[%clk 0:02:18.1]}
19... Qg5 {[%clk 0:02:14.2]} 20. f4 {[%clk 0:02:16.2]} 20... Qg3 {[%clk
0:01:55.5]} 21. Qf2 {[%clk 0:02:15.3]} 21... Qxf2+ {[%clk 0:01:50.9]} 22. Kxf2
{[%clk 0:02:16.2]} 22... Ra3 {[%clk 0:01:49]} 23. Rfc1 {[%clk 0:02:16.3]} 23...
Nf6 {[%clk 0:01:47.6]} 24. Kf3 {[%clk 0:02:06.5]} 24... Bf5 {[%clk 0:01:22]} 25.
Rb2 {[%clk 0:02:02.3]} 25... Rea8 {[%clk 0:00:52.7]} 26. b5 {[%clk 0:01:58]}
26... Be4+ {[%clk 0:00:45.4]} 27. Kf2 {[%clk 0:01:44.7]} 27... Bf5 {[%clk
0:00:42.9]} 28. bxc6 {[%clk 0:01:34.7]} 28... bxc6 {[%clk 0:00:42.9]} 29. Kf3
{[%clk 0:01:32.3]} 29... Be4+ {[%clk 0:00:40.4]} 30. Nxe4 {[%clk 0:01:29.3]}
30... dxe4+ {[%clk 0:00:40.7]} 31. Kf2 {[%clk 0:01:22.8]} 31... Nd5 {[%clk
0:00:41]} 32. Nc4 {[%clk 0:01:09.2]} 32... Rc3 {[%clk 0:00:33.7]} 33. Rbc2
{[%clk 0:01:03.2]} 33... Rd3 {[%clk 0:00:29.3]} 34. Re2 {[%clk 0:00:44.1]} 34...
Nc3 {[%clk 0:00:26.1]} 35. Rd2 {[%clk 0:00:42.1]} 35... Nd5 {[%clk 0:00:19]} 36.
g3 {[%clk 0:00:32.5]} 36... Rxd2+ {[%clk 0:00:18.6]} 37. Nxd2 {[%clk 0:00:32.7]}
37... Ra2 {[%clk 0:00:19.3]} 38. Ke2 {[%clk 0:00:27.8]} 38... Ra3 {[%clk
0:00:14.4]} 39. Nc4 {[%clk 0:00:21.6]} 39... Ra2+ {[%clk 0:00:14.6]} 40. Kf1
{[%clk 0:00:19.3]} 40... Ra4 {[%clk 0:00:13.1]} 41. g4 {[%clk 0:00:15.7]} 41...
Rxc4 {[%clk 0:00:12.6]} 42. Rxc4 {[%clk 0:00:11.1]} 42... Nxe3+ {[%clk
0:00:13.1]} 43. Ke2 {[%clk 0:00:11.9]} 43... Nxc4 {[%clk 0:00:14]} 44. f5 {[%clk
0:00:09.7]} 44... gxf5 {[%clk 0:00:13.9]} 45. gxf5 {[%clk 0:00:10.6]} 45... Nd6
{[%clk 0:00:14.7]} 46. f6 {[%clk 0:00:10.5]} 46... gxf6 {[%clk 0:00:14.9]} 47.
Ke3 {[%clk 0:00:11.3]} 47... f5 {[%clk 0:00:15.4]} 48. Kf4 {[%clk 0:00:12.2]}
48... Kg7 {[%clk 0:00:16]} 49. Ke5 {[%clk 0:00:12.8]} 49... e3 {[%clk
0:00:16.3]} 50. Kxd6 {[%clk 0:00:13.3]} 50... e2 {[%clk 0:00:17]} 51. Kxc6
{[%clk 0:00:14.2]} 51... e1=Q {[%clk 0:00:17.6]} 52. d5 {[%clk 0:00:15.1]} 52...
Qc3+ {[%clk 0:00:18]} 53. Kd7 {[%clk 0:00:15.5]} 53... f4 {[%clk 0:00:18.4]} 54.
d6 {[%clk 0:00:16.4]} 54... Qd4 {[%clk 0:00:18.8]} 55. h4 {[%clk 0:00:16.8]}
55... f3 {[%clk 0:00:19.7]} 56. h5 {[%clk 0:00:17]} 56... f2 {[%clk 0:00:20.4]}
57. h6+ {[%clk 0:00:16.8]} 57... Kxh6 {[%clk 0:00:20.9]} 58. Ke8 {[%clk
0:00:16.9]} 58... Qxd6 {[%clk 0:00:20.3]} 59. Kxf7 {[%clk 0:00:16.6]} 59...
f1=Q+ {[%clk 0:00:20.5]} 60. Kg8 {[%clk 0:00:17.5]} 60... Qff8# {[%clk
0:00:20.7]} 0-1

[Event "Early-Titled-Tuesday-Blitz-March-12-2024"]
[Site "Chess.com"]
[Date "2024.03.12"]
[Round "11"]
[White "AsaHoffmann"]
[Black "djano"]
[Result "1-0"]
[WhiteElo "2406"]
[BlackElo "2574"]
[TimeControl "180+1"]
[EndTime "10:04:15 PDT"]
[Termination "AsaHoffmann won by resignation"]

1. d4 {[%clk 0:02:55.9]} 1... c5 {[%clk 0:02:59.9]} 2. dxc5 {[%clk 0:02:54.9]}
2... e5 {[%clk 0:02:59.7]} 3. Nc3 {[%clk 0:02:54.3]} 3... Bxc5 {[%clk
0:02:59.7]} 4. Ne4 {[%clk 0:02:53.4]} 4... Qb6 {[%clk 0:02:59.6]} 5. Nxc5 {[%clk
0:02:51.1]} 5... Qxc5 {[%clk 0:03:00.5]} 6. c3 {[%clk 0:02:42.9]} 6... Nf6
{[%clk 0:02:59.8]} 7. Be3 {[%clk 0:02:39.4]} 7... Qc6 {[%clk 0:02:57.8]} 8. Nf3
{[%clk 0:02:38.3]} 8... d6 {[%clk 0:02:56.3]} 9. g3 {[%clk 0:02:37.5]} 9... Bf5
{[%clk 0:02:52.9]} 10. Bg2 {[%clk 0:02:37.1]} 10... Be4 {[%clk 0:02:53.2]} 11.
O-O {[%clk 0:02:36.4]} 11... O-O {[%clk 0:02:53.4]} 12. Qd2 {[%clk 0:02:32.6]}
12... Na6 {[%clk 0:02:50.5]} 13. Rfd1 {[%clk 0:02:31.4]} 13... Rfd8 {[%clk
0:02:50.6]} 14. b4 {[%clk 0:02:28.1]} 14... Rac8 {[%clk 0:02:45.5]} 15. Rac1
{[%clk 0:02:26.7]} 15... Qa4 {[%clk 0:02:42.5]} 16. Qb2 {[%clk 0:02:06.2]} 16...
h6 {[%clk 0:02:37.1]} 17. Bxa7 {[%clk 0:02:05.3]} 17... Nd5 {[%clk 0:02:03.1]}
18. a3 {[%clk 0:01:58.8]} 18... Rxc3 {[%clk 0:01:58.5]} 19. Rxd5 {[%clk
0:01:54.2]} 19... Rxc1+ {[%clk 0:01:57.8]} 20. Qxc1 {[%clk 0:01:47.9]} 20...
Bxd5 {[%clk 0:01:58.1]} 21. Bb6 {[%clk 0:01:44.7]} 21... Re8 {[%clk 0:01:53.8]}
22. Qd2 {[%clk 0:01:40.3]} 22... Qb3 {[%clk 0:01:42.2]} 23. h4 {[%clk
0:01:38.8]} 23... Bc6 {[%clk 0:01:28.9]} 24. Qc1 {[%clk 0:01:31.8]} 24... Qa2
{[%clk 0:01:18.7]} 25. Qe3 {[%clk 0:01:27.9]} 25... Qd5 {[%clk 0:01:03.2]} 26.
h5 {[%clk 0:01:24.2]} 26... e4 {[%clk 0:01:00.9]} 27. Nd4 {[%clk 0:01:15.5]}
27... Qxh5 {[%clk 0:01:00.3]} 28. g4 {[%clk 0:00:59.8]} 28... Qe5 {[%clk
0:00:49.6]} 29. Nf5 {[%clk 0:00:57.2]} 29... Nb8 {[%clk 0:00:44.9]} 30. Bd4
{[%clk 0:00:56.7]} 30... Qd5 {[%clk 0:00:36.5]} 31. Bxg7 {[%clk 0:00:54.8]}
31... Re6 {[%clk 0:00:33.1]} 32. Bxh6 {[%clk 0:00:50.7]} 32... Nd7 {[%clk
0:00:28.2]} 33. Qg5+ {[%clk 0:00:49.1]} 33... Rg6 {[%clk 0:00:28.6]} 34. Ne7+
{[%clk 0:00:48.8]} 34... Kh7 {[%clk 0:00:27.9]} 35. Qxg6+ {[%clk 0:00:35.2]}
35... fxg6 {[%clk 0:00:27.5]} 36. Nxd5 {[%clk 0:00:35]} 36... Bxd5 {[%clk
0:00:24.8]} 37. Bf4 {[%clk 0:00:34.8]} 37... Nf6 {[%clk 0:00:24.8]} 38. f3
{[%clk 0:00:34.1]} 38... exf3 {[%clk 0:00:24.7]} 39. Bxf3 {[%clk 0:00:33.5]}
39... Bxf3 {[%clk 0:00:21.2]} 40. exf3 {[%clk 0:00:33.2]} 40... d5 {[%clk
0:00:22.1]} 41. Kf2 {[%clk 0:00:33.1]} 41... Kg8 {[%clk 0:00:21.9]} 42. Be5
{[%clk 0:00:31.9]} 42... Nd7 {[%clk 0:00:22.1]} 43. Bd4 {[%clk 0:00:32]} 43...
Kf7 {[%clk 0:00:22.7]} 44. a4 {[%clk 0:00:32]} 44... Ke6 {[%clk 0:00:22.6]} 45.
a5 {[%clk 0:00:31.6]} 45... Nb8 {[%clk 0:00:22.8]} 46. b5 {[%clk 0:00:31.4]}
46... Kd6 {[%clk 0:00:23.4]} 47. Ke3 {[%clk 0:00:31.4]} 47... Nd7 {[%clk
0:00:23.5]} 48. a6 {[%clk 0:00:31.1]} 48... bxa6 {[%clk 0:00:22.9]} 49. bxa6
{[%clk 0:00:31.1]} 49... Kc6 {[%clk 0:00:23.5]} 50. Kf4 {[%clk 0:00:31.1]} 50...
Nf8 {[%clk 0:00:23.3]} 51. Ke5 {[%clk 0:00:29.9]} 51... Nh7 {[%clk 0:00:23.3]}
52. f4 {[%clk 0:00:28.2]} 52... Nf8 {[%clk 0:00:20.4]} 53. Kf6 {[%clk
0:00:26.5]} 53... Kc7 {[%clk 0:00:17.9]} 54. a7 {[%clk 0:00:25.9]} 54... Kb7
{[%clk 0:00:18]} 55. Kf7 {[%clk 0:00:25.6]} 55... Nd7 {[%clk 0:00:17.6]} 56.
Kxg6 {[%clk 0:00:25.4]} 56... Nf8+ {[%clk 0:00:17.3]} 57. Kf7 {[%clk 0:00:25.1]}
57... Nd7 {[%clk 0:00:17.8]} 58. f5 {[%clk 0:00:25.2]} 58... Ka8 {[%clk
0:00:16.2]} 59. g5 {[%clk 0:00:25.3]} 59... Kb7 {[%clk 0:00:16.4]} 60. g6 {[%clk
0:00:25.5]} 60... Nb6 {[%clk 0:00:16.2]} 61. Bxb6 {[%clk 0:00:25.2]} 61... d4
{[%clk 0:00:17.1]} 62. Bxd4 {[%clk 0:00:25.1]} 1-0

[Event "Early-Titled-Tuesday-Blitz-March-12-2024"]
[Site "Chess.com"]
[Date "2024.03.12"]
[Round "11"]
[White "littlepinkyboy"]
[Black "Triumphmate"]
[Result "1-0"]
[WhiteElo "2618"]
[BlackElo "2517"]
[TimeControl "180+1"]
[EndTime "10:04:15 PDT"]
[Termination "littlepinkyboy won by checkmate"]

1. e4 {[%clk 0:03:00.3]} 1... d5 {[%clk 0:03:00]} 2. exd5 {[%clk 0:03:00.3]}
2... Nf6 {[%clk 0:02:58.9]} 3. d4 {[%clk 0:02:58.3]} 3... Bg4 {[%clk 0:02:55.9]}
4. Nf3 {[%clk 0:02:56.8]} 4... Qxd5 {[%clk 0:02:55.6]} 5. Be2 {[%clk 0:02:54.3]}
5... Nc6 {[%clk 0:02:55.1]} 6. h3 {[%clk 0:02:54.2]} 6... Bh5 {[%clk 0:02:42]}
7. Nc3 {[%clk 0:02:53.5]} 7... Qd7 {[%clk 0:02:37]} 8. d5 {[%clk 0:02:31.7]}
8... Nb4 {[%clk 0:02:32.6]} 9. Ne5 {[%clk 0:02:31.1]} 9... Bxe2 {[%clk
0:02:30.1]} 10. Qxe2 {[%clk 0:02:30.2]} 10... Qf5 {[%clk 0:02:23]} 11. Qb5+
{[%clk 0:02:25.8]} 11... c6 {[%clk 0:02:23.3]} 12. Qxb4 {[%clk 0:02:24.2]} 12...
Qxe5+ {[%clk 0:02:21.9]} 13. Be3 {[%clk 0:02:24.9]} 13... cxd5 {[%clk
0:02:07.3]} 14. Qxb7 {[%clk 0:01:48]} 14... Rb8 {[%clk 0:02:04.8]} 15. Qc6+
{[%clk 0:01:40.3]} 15... Nd7 {[%clk 0:02:04.8]} 16. Nxd5 {[%clk 0:01:35.3]}
16... e6 {[%clk 0:01:58.9]} 17. Nc7+ {[%clk 0:01:22.1]} 17... Kd8 {[%clk
0:01:58.1]} 18. Na6 {[%clk 0:01:10.4]} 18... Qa5+ {[%clk 0:00:30.7]} 19. Bd2
{[%clk 0:00:55.2]} 19... Qe5+ {[%clk 0:00:24.1]} 20. Be3 {[%clk 0:00:48.7]}
20... Rc8 {[%clk 0:00:23.2]} 21. Qb7 {[%clk 0:00:38.9]} 21... Qd5 {[%clk
0:00:20.7]} 22. Qxd5 {[%clk 0:00:26.9]} 22... exd5 {[%clk 0:00:21.6]} 23. O-O-O
{[%clk 0:00:23.1]} 23... Rc6 {[%clk 0:00:22.1]} 24. Rxd5 {[%clk 0:00:21.2]}
24... Rxa6 {[%clk 0:00:20]} 25. Rhd1 {[%clk 0:00:21.3]} 25... Ke8 {[%clk
0:00:03.1]} 26. Rxd7 {[%clk 0:00:20.2]} 26... Be7 {[%clk 0:00:03.8]} 27. Rb7
{[%clk 0:00:16.6]} 27... f6 {[%clk 0:00:02.2]} 28. Rb8+ {[%clk 0:00:15.8]} 28...
Kf7 {[%clk 0:00:02.9]} 29. Rxh8 {[%clk 0:00:16.7]} 29... Rxa2 {[%clk 0:00:03.4]}
30. Rd7 {[%clk 0:00:17.2]} 30... Ke6 {[%clk 0:00:02.9]} 31. Rxa7 {[%clk
0:00:17.7]} 31... Rxa7 {[%clk 0:00:02.1]} 32. Bxa7 {[%clk 0:00:18.6]} 32... f5
{[%clk 0:00:02.8]} 33. Rxh7 {[%clk 0:00:18.1]} 33... Kf7 {[%clk 0:00:03.5]} 34.
Be3 {[%clk 0:00:18.6]} 34... Kg8 {[%clk 0:00:03.5]} 35. Rh5 {[%clk 0:00:18.3]}
35... g6 {[%clk 0:00:04.2]} 36. Rg5 {[%clk 0:00:18.7]} 36... Kg7 {[%clk
0:00:03.2]} 37. h4 {[%clk 0:00:18.4]} 37... Kh6 {[%clk 0:00:03.4]} 38. Rxf5+
{[%clk 0:00:18]} 38... Kg7 {[%clk 0:00:03.5]} 39. Rd5 {[%clk 0:00:18.9]} 39...
Bxh4 {[%clk 0:00:03]} 40. b4 {[%clk 0:00:19.8]} 40... Bxf2 {[%clk 0:00:02.5]}
41. Bd4+ {[%clk 0:00:20.6]} 41... Bxd4 {[%clk 0:00:02.7]} 42. Rxd4 {[%clk
0:00:20.4]} 42... Kf6 {[%clk 0:00:03.6]} 43. b5 {[%clk 0:00:21.3]} 43... Ke5
{[%clk 0:00:04.1]} 44. c3 {[%clk 0:00:21.7]} 44... Kf5 {[%clk 0:00:04.6]} 45. b6
{[%clk 0:00:22.6]} 45... Kg5 {[%clk 0:00:05]} 46. b7 {[%clk 0:00:23.5]} 46...
Kh6 {[%clk 0:00:05.7]} 47. b8=Q {[%clk 0:00:24.1]} 47... Kh5 {[%clk 0:00:06]}
48. Qh2+ {[%clk 0:00:23.6]} 48... Kg5 {[%clk 0:00:06.3]} 49. Qe5+ {[%clk
0:00:23.9]} 49... Kh6 {[%clk 0:00:06.5]} 50. Rh4# {[%clk 0:00:24.6]} 1-0

[Event "Early-Titled-Tuesday-Blitz-March-12-2024"]
[Site "Chess.com"]
[Date "2024.03.12"]
[Round "11"]
[White "SaiAgni_98"]
[Black "Al_Shima"]
[Result "0-1"]
[WhiteElo "2531"]
[BlackElo "2452"]
[TimeControl "180+1"]
[EndTime "10:04:18 PDT"]
[Termination "Al_Shima won by resignation"]

1. e4 {[%clk 0:03:00.7]} 1... c6 {[%clk 0:02:59.3]} 2. Nf3 {[%clk 0:02:57.5]}
2... d5 {[%clk 0:03:00.2]} 3. exd5 {[%clk 0:02:58.4]} 3... cxd5 {[%clk
0:03:01.1]} 4. Ne5 {[%clk 0:02:57.6]} 4... Nc6 {[%clk 0:03:00.2]} 5. Nxc6 {[%clk
0:02:56.8]} 5... bxc6 {[%clk 0:03:01.1]} 6. d4 {[%clk 0:02:57.2]} 6... Bf5
{[%clk 0:03:01.4]} 7. c3 {[%clk 0:02:48.9]} 7... e6 {[%clk 0:02:58.4]} 8. Qa4
{[%clk 0:02:47.6]} 8... Qc8 {[%clk 0:02:41.6]} 9. Ba6 {[%clk 0:02:45.1]} 9...
Qd7 {[%clk 0:02:38.3]} 10. Bf4 {[%clk 0:02:39.6]} 10... Nf6 {[%clk 0:01:54.1]}
11. Nd2 {[%clk 0:02:39.2]} 11... Ne4 {[%clk 0:01:41]} 12. Nxe4 {[%clk
0:02:26.5]} 12... Bxe4 {[%clk 0:01:41.9]} 13. O-O {[%clk 0:02:25.7]} 13... Be7
{[%clk 0:01:39.4]} 14. Rfe1 {[%clk 0:02:19.4]} 14... O-O {[%clk 0:01:34.1]} 15.
Re2 {[%clk 0:02:08]} 15... Rad8 {[%clk 0:00:57.5]} 16. Rae1 {[%clk 0:02:06.6]}
16... Bd6 {[%clk 0:00:55.4]} 17. Bxd6 {[%clk 0:01:57.2]} 17... Qxd6 {[%clk
0:00:56.3]} 18. f3 {[%clk 0:01:55.8]} 18... Bg6 {[%clk 0:00:51.8]} 19. Bb7
{[%clk 0:01:39.8]} 19... Bd3 {[%clk 0:00:34.4]} 20. Re3 {[%clk 0:01:26.1]} 20...
Bb5 {[%clk 0:00:27.6]} 21. Qxa7 {[%clk 0:01:25.8]} 21... Qc7 {[%clk 0:00:27.8]}
22. a4 {[%clk 0:01:06.8]} 22... Ra8 {[%clk 0:00:20.3]} 23. Qc5 {[%clk
0:01:04.4]} 23... Rxa4 {[%clk 0:00:16.7]} 24. b3 {[%clk 0:00:57.2]} 24... Ra2
{[%clk 0:00:07.3]} 25. c4 {[%clk 0:00:57.4]} 25... Qxb7 {[%clk 0:00:05.1]} 26.
cxb5 {[%clk 0:00:56.6]} 26... cxb5 {[%clk 0:00:05.6]} 27. Rc3 {[%clk 0:00:52.8]}
27... h6 {[%clk 0:00:05]} 28. Rec1 {[%clk 0:00:44.6]} 28... Rfa8 {[%clk
0:00:04.3]} 29. Qc7 {[%clk 0:00:41.5]} 29... Qxc7 {[%clk 0:00:04]} 30. Rxc7
{[%clk 0:00:42.4]} 30... Rb2 {[%clk 0:00:04.7]} 31. Rc8+ {[%clk 0:00:06.3]}
31... Rxc8 {[%clk 0:00:04.6]} 32. Rxc8+ {[%clk 0:00:07.2]} 32... Kh7 {[%clk
0:00:05]} 33. Rc3 {[%clk 0:00:07.4]} 33... Rd2 {[%clk 0:00:02.8]} 34. Rc5 {[%clk
0:00:06.8]} 34... b4 {[%clk 0:00:02.8]} 35. Rc7 {[%clk 0:00:05.9]} 35... Kg6
{[%clk 0:00:02.3]} 36. Rb7 {[%clk 0:00:06.4]} 36... Rxd4 {[%clk 0:00:02.7]} 37.
Kf2 {[%clk 0:00:07]} 37... f6 {[%clk 0:00:03.1]} 38. Ke3 {[%clk 0:00:05.6]}
38... e5 {[%clk 0:00:03.6]} 39. g4 {[%clk 0:00:04.1]} 39... Rf4 {[%clk
0:00:02.5]} 40. h4 {[%clk 0:00:04.3]} 40... d4+ {[%clk 0:00:03]} 41. Ke2 {[%clk
0:00:03.8]} 41... e4 {[%clk 0:00:02.4]} 42. h5+ {[%clk 0:00:03.1]} 42... Kh7
{[%clk 0:00:02.7]} 43. Rxg7+ {[%clk 0:00:03.3]} 43... Kxg7 {[%clk 0:00:02.3]}
44. fxe4 {[%clk 0:00:02.8]} 44... Rxe4+ {[%clk 0:00:03.2]} 45. Kd3 {[%clk
0:00:02.8]} 45... Rxg4 {[%clk 0:00:03.4]} 0-1